Cogmind - Beta 13 @@@ ROGUE MODE // 2024.04.17 @ 18:31:11 Player: Evilsquid Result: Destroyed by S-10 Pest with Light Assault Rifle Performance ------------- Evolutions (0) 0 Regions Visited (2) 400 Robots Destroyed (34) 170 Value Destroyed (781) 781 Prototype IDs (0) 0 Alien Tech Used (0) 0 Bonus (0) 0 TOTAL SCORE: 1351 Bonus ------- None Cogmind --------- Core Integrity 0/250 Matter 280/300 Energy 240/250 System Corruption 0% Temperature Cool (0) Movement Rolling (150) Ox4 Location -10/Subcaves Parts ------- > --- POWER (1) -------- Ion Engine > --- PROPULSION (2) --- Subdweller Monowheel Subdweller Monowheel > --- UTILITY (2) ------ Huge Storage Unit > --- WEAPON (2) ------- Subdweller Beam Cannon > --- INVENTORY (25) --- Light Ion Engine Light Treads Cooling System Machine Analyzer Signal Interpreter Improved Terrain Scanner Improved Targeting Computer Scrap Shield Makeshift Hacking Suite Subdweller Laser Light Assault Rifle Subdweller Machine Gun Subdweller Machine Gun Subdweller Machine Gun Light Cannon Battle Cannon Battle Cannon Subdweller Shrapnel Launcher Scrap Shield Fragment (47) Scrap Shield Fragment (46) Scrap Shield Fragment (45) Scrap Shield Fragment (45) Scrap Shield Fragment (45) Scrap Shield Fragment (45) Peak State ------------ > --- POWER ------------ Ion Engine > --- PROPULSION ------- Subdweller Monowheel Subdweller Monowheel > --- UTILITY ---------- Huge Storage Unit Makeshift Thermal Plating > --- WEAPON ----------- Subdweller Beam Cannon Heavy Battle Rifle > --- INVENTORY -------- Light Ion Engine Cooling System Cooling System Cooling System Disposable Heat Sink Disposable Heat Sink Machine Analyzer Signal Interpreter Improved Terrain Scanner Improved Targeting Computer Improved Targeting Computer Improved Targeting Computer Makeshift Hacking Suite Medium Laser Particle Gun Subdweller Laser Light Assault Rifle Subdweller Machine Gun Subdweller Machine Gun Subdweller Machine Gun Light Cannon Battle Cannon Subdweller Shrapnel Launcher Plasma Cutter Plasma Cutter [Rating: 20] Favorites ----------- Power Ion Engine Engine Ion Engine Propulsion Light Treads Treads Light Treads Wheel Subdweller Monowheel Utility Huge Storage Unit Device Seismic Detector Storage Huge Storage Unit Processor Improved Targeting Computer Protection Makeshift Thermal Plating Weapon Subdweller Machine Gun Energy Gun Medium Laser Energy Cannon Subdweller Beam Cannon Ballistic Gun Subdweller Machine Gun Ballistic Cannon Battle Cannon Build | -11 -10 -10 ------- Run | Yrd Mat Sub Slots Evolved . | . . . Power . | . . . Propulsion . | . . . Utility . | . . . Weapon . | . . . Parts Attached 36 | 8 11 17 Power 4 | 1 1 2 Engine 4 | 1 1 2 Core . | . . . Reactor . | . . . Propulsion 13 | 2 7 4 Treads 11 | 2 7 2 Leg . | . . . Wheel 2 | . . 2 Hover . | . . . Flight . | . . . Utility 7 | 3 2 2 Device 2 | 2 . . Storage 3 | 1 2 . Processor 1 | . . 1 Hackware . | . . . Protection 1 | . . 1 Artifact . | . . . Weapon 12 | 2 1 9 Energy Gun 3 | 1 . 2 Energy Cannon 1 | . . 1 Ballistic Gun 5 | 1 1 3 Ballistic Cannon 3 | . . 3 Launcher . | . . . Special Weapon . | . . . Impact Weapon . | . . . Slashing Weapon . | . . . Piercing Weapon . | . . . Special Melee Weapon . | . . . Unidentified Prototypes . | . . . Parts Lost 6 | . . 6 Power 1 | . . 1 Propulsion 3 | . . 3 Utility 1 | . . 1 Weapon 1 | . . 1 Highest Loss Streak 2 | . . 2 To Critical Strikes 1 | . . 1 Average Slot Usage (%) 96 | . 100 94 Engine 13 | . 14 13 Treads 21 | . 28 18 Wheel 4 | . . 6 Device 9 | . 14 8 Storage 14 | . 14 14 Protection 2 | . . 3 Energy Gun 5 | . 14 2 Energy Cannon 2 | . . 3 Ballistic Gun 13 | . 14 12 Ballistic Cannon 6 | . . 8 Naked Turns . | . . . Heaviest Build 101 | 14 89 101 Greatest Support 40 | 40 40 40 Greatest Overweight (x) 5 | 3 2 5 Average Overweight (x) 2 | . . 2 Largest Inventory Capacity 25 | 8 25 25 Average Capacity 22 | 7 19 25 Most Carried 25 | 3 22 25 Average Carried 21 | 1 15 24 Final Capacity 25 | 8 25 25 Final Carried 25 | 3 22 25 Class Distribution -------------------- 65% | Mutant 34% | Scavenger-Mutant Dominant Class ---------------- Mutant | -10/Materials Mutant | -10/Subcaves Resources | -11 -10 -10 ----------- Run | Yrd Mat Sub Matter Collected 975 | 281 134 560 Remotely . | . . . Salvage Created 1149 | 86 563 500 Parts 85 | 5 36 44 Haulers Intercepted 2 | . 2 . Recyclers Shooed 2 | . 2 . Parts Field Recycled . | . . . Retrieved Matter . | . . . Parts Self-Destructed 13 | . . 13 Prevented . | . . . Kills | -11 -10 -10 ------- Run | Yrd Mat Sub Combat Hostiles Destroyed 26 | . 12 14 Guns 20 | . 12 8 Cannons 6 | . . 6 Classes Destroyed 9 | 2 5 2 Tunneler 2 | 2 . . Hauler 2 | . 2 . Recycler 2 | 1 1 . Mechanic 1 | . 1 . Watcher 1 | . 1 . Swarmer 10 | . 6 4 Grunt 6 | . 6 . Sentry 1 | . . 1 Subdweller 9 | . . 9 Best Kill Streak 3 | 2 3 3 Combat Bots Only 3 | . 3 3 Max Kills in Single Turn 1 | 1 1 1 Gunslinging . | . . . Exploded . | . . . Melee . | . . . Uniques/NPCs Destroyed . | . . . Combat | -11 -10 -10 -------- Run | Yrd Mat Sub Hostile Shots Fired 129 | . 58 71 Missed 32 | . 13 19 Damage Taken 1300 | . 491 809 Core 250 | . 101 149 Absorbed by Shields . | . . . Ignored by Resistances 7 | . . 7 Core Remaining (%) 100 | 100 . . Volleys Fired 179 | 4 72 103 Largest 2 | 2 2 2 Hottest 115 | 70 70 115 Shots Fired 343 | 8 144 191 Gun 277 | 8 144 125 Cannon 66 | . . 66 Launcher . | . . . Special . | . . . Kinetic 199 | 4 72 123 Thermal 144 | 4 72 68 Explosive . | . . . Electromagnetic . | . . . Robot Hit Streak 21 | 4 14 21 Robot Miss Streak 4 | 1 4 3 Penetration Max . | . . . Secondary Targets 1 | . . 1 Max Gunslinging Chain 1 | . . 1 Shots Hit Robots 158 | 4 84 70 Core Hits 60 | 4 32 24 Critical Kills 1 | . . 1 Critical Parts Destroyed 1 | . . 1 Critical Strikes 9 | . 4 5 Burn 4 | . 4 . Destroy 2 | . . 2 Blast 3 | . . 3 Melee Attacks . | . . . Impact . | . . . Slashing . | . . . Piercing . | . . . Sneak Attacks . | . . . Combat Hostiles . | . . . Follow-up Attacks . | . . . Damage Inflicted 2446 | 46 946 1454 Guns 1762 | 46 909 807 Cannons 625 | . . 625 Explosions . | . . . Melee . | . . . Ramming 59 | . 37 22 Kinetic 1267 | 7 346 914 Thermal 1120 | 39 563 518 Explosive . | . . . Electromagnetic . | . . . Impact . | . . . Slashing . | . . . Piercing . | . . . Highest Corruption . | . . . Average Corruption . | . . . Corruption Purged . | . . . Corruption Blocked . | . . . Overload Shots . | . . . Overflow Damage . | . . . Projectiles . | . . . Explosions . | . . . Melee . | . . . Knockbacks 10 | . 1 9 Impact 2 | . 1 1 Kinetic 8 | . . 8 Secondary . | . . . Self-Inflicted Damage 11 | . . 11 Shots . | . . . Rammed 5 | 1 3 1 Targets Rammed 5 | 1 3 1 Kicked . | . . . Crushed . | . . . Highest Temperature 252 | 40 236 252 Average Temperature 64 | 19 62 118 Received Heat Transfer 536 | . 198 338 Siege Activations . | . . . Robots Corrupted . | . . . Combat Hostiles . | . . . Parts Fried . | . . . Impact Corruptions . | . . . Robots Melted . | . . . Combat Hostiles . | . . . Parts Melted 1 | . 1 . Heat Transferred 2743 | 111 1961 671 Parts Sabotaged . | . . . Parts Stolen . | . . . Parts Stripped . | . . . Power Chain Reactions . | . . . Alert | -11 -10 -10 ------- Run | Yrd Mat Sub Peak Influence 186 | 15 186 . Initial 9 | . 9 . Average 64 | 6 67 . Maximum Alert Level . | . . . Low Security (%) 100 | 100 100 . Level 1 . | . . . Level 2 . | . . . Level 3 . | . . . Level 4 . | . . . Level 5 . | . . . High Security . | . . . Max Security . | . . . Squads Dispatched 2 | . 2 . Investigation . | . . . Extermination . | . . . Reinforcement 2 | . 2 . Assault . | . . . Garrison . | . . . Intercept . | . . . Searches Triggered . | . . . Construction Impeded . | . . . Haulers Reinforced . | . . . Active Scanning Responses . | . . . Cargo Convoy Interrupts . | . . . Stealth | -11 -10 -10 --------- Run | Yrd Mat Sub Distress Signals 1 | . 1 . Communications Jammed . | . . . Distress Signals . | . . . Times Spotted 41 | . 24 17 Peak Tracking Total 5 | . 5 4 Tactical Retreats 3 | . 2 1 Traps | -11 -10 -10 ------- Run | Yrd Mat Sub Traps Triggered 1 | . 1 . Indirectly . | . . . Trap Hack Attempts . | . . . Triggered . | . . . Disarmed . | . . . Reprogrammed . | . . . Reused . | . . . Traps Extracted . | . . . Installed . | . . . Triggered 1 | . . 1 Machines | -11 -10 -10 ---------- Run | Yrd Mat Sub Machines Disabled . | . . . Max in Single Turn . | . . . Machines Repaired . | . . . Machines Dismantled . | . . . Machines Sabotaged . | . . . Overloaded Fab Kills . | . . . Hacking | -11 -10 -10 --------- Run | Yrd Mat Sub Machines Accessed 5 | . 4 1 Terminals 4 | . 4 . Fabricators . | . . . Repair Stations . | . . . Recycling Units . | . . . Scanalyzers . | . . . Garrison Access . | . . . Total Hacks 14 | . 13 1 Successful 4 | . 3 1 Failed 10 | . 10 . Catastrophic 2 | . 2 . Database Lockouts . | . . . Manual 13 | . 13 . Terminals 13 | . 13 . Fabricators . | . . . Repair Stations . | . . . Recycling Units . | . . . Scanalyzers . | . . . Garrison Access . | . . . Terminal Hacks 1 | . . 1 Record 1 | . . 1 Fabricator Hacks . | . . . Repair Station Hacks . | . . . Recycling Unit Hacks . | . . . Scanalyzer . | . . . Garrison Access Hacks . | . . . Unauthorized Hacks 3 | . 3 . Terminals 3 | . 3 . Botnet 3 | . 3 . Fabricators . | . . . Repair Stations . | . . . Recycling Units . | . . . Scanalyzers . | . . . Garrison Access . | . . . Data Cores Recovered . | . . . Used . | . . . Hacking Detections 4 | . 4 . Full Trace Events . | . . . Feedback Events . | . . . Feedback Blocked . | . . . Robot Schematics Acquired . | . . . Robots Built . | . . . Authchips . | . . . Time . | . . . Total Robot Build Rating . | . . . Part Schematics Acquired . | . . . Parts Built . | . . . Authchips . | . . . Time . | . . . Total Part Build Rating . | . . . Parts Repaired . | . . . Time . | . . . Parts Recycled . | . . . Recycled Matter . | . . . Retrieved Matter . | . . . Retrieved Components . | . . . Parts Scanalyzed . | . . . Part Schematics Acquired . | . . . Parts Damaged . | . . . Bothacking | -11 -10 -10 ------------ Run | Yrd Mat Sub Used RIF Installer . | . . . Robots Hacked . | . . . Non-combat . | . . . Combat . | . . . Robot Hacks Applied . | . . . Relay Couplers Released . | . . . Fabnet Peak Effective % . | . . . Robots Rewired . | . . . Allies Hacked . | . . . Hacks Repelled . | . . . Allies | -11 -10 -10 -------- Run | Yrd Mat Sub Total Allies . | . . . Largest Group . | . . . Highest-Rated Group . | . . . Highest-Rated Ally . | . . . Total Orders . | . . . Ally Attacks . | . . . Total Damage . | . . . Kills . | . . . Allies Corrupted . | . . . Allies Melted . | . . . Intel | -11 -10 -10 ------- Run | Yrd Mat Sub Robot Analysis Total . | . . . Derelict Logs Recovered 1 | . . 1 Drone Launches . | . . . Drone Recoveries . | . . . Exploration | -11 -10 -10 ------------- Run | Yrd Mat Sub Turns Passed 6151 | 97 1821 4233 Spaces Moved 2381 | 45 702 1634 Core 8 | 8 . . Treads 1555 | 37 702 816 Legs . | . . . Wheels 818 | . . 818 Hover . | . . . Flight . | . . . Fastest Speed 50 | 50 160 130 Average Speed 227 | 154 218 234 Slowest Speed 480 | 200 320 480 Overloaded Moves . | . . . Propulsion Burnouts . | . . . Robots Hopped . | . . . Cave-ins Triggered . | . . . Exploration Rate (%) 51 | 4 85 65 Regions Visited 2 Branch Regions 1 Pre-discovered Areas . | . . . Known Exits Taken . | . . . Unknown Exits Taken 2 | 1 1 . Scrap Searched 6 | . . 6 Spaces Dug 14 | . . 14 Terrain Destroyed 15 | . . 15 Melee . | . . . Projectile 15 | . . 15 AOE . | . . . Terrain Rammed . | . . . Walls Destroyed . | . . . Machines Disabled . | . . . Actions | -11 -10 -10 --------- Run | Yrd Mat Sub Total 2779 | 61 852 1866 Wait 92 | . 37 55 Move 2379 | 44 701 1634 Hop . | . . . Pick Up 54 | 4 22 28 Fast Attach 9 | 6 1 2 Attach 6 | 1 . 5 Detach 3 | . . 3 Swap 21 | 1 10 10 Drop 31 | . 6 25 Fire 179 | 4 72 103 Melee . | . . . Ram 1 | . . 1 Kick . | . . . Crush 4 | 1 3 . Escape Stasis . | . . . Rewire . | . . . Trap . | . . . Miscellaneous . | . . . Route ------- -11/Scrapyard -10/Materials (discovered 4 exits: [*Mat x2] / [*Min] / *Sub) -10/Subcaves (discovered 1 exit: Mat) History --------- Turn | Location | Event 64 | -11/Scrapyard | Discovered new exit (range 16) 98 | -11/Scrapyard | Entered Materials 311 | -10/Materials | Build established: Mutant 512 | -10/Materials | Discovered new exit (range 6) 589 | -10/Materials | Discovered new exit (range 11) 680 | -10/Materials | Discovered new exit (range 15) 1878 | -10/Materials | Discovered new exit (range 9) 1919 | -10/Materials | Entered Subcaves 1934 | -10/Subcaves | Identified exit to Materials 2367 | -10/Subcaves | Shifting Twisted Machinery released Sub. Shrapnel Launcher 2412 | -10/Subcaves | Core integrity fell below 50% 2763 | -10/Subcaves | Build established: Scavenger-Mutant 3192 | -10/Subcaves | Shifting Twisted Machinery released Mak. System Restoration Module 4723 | -10/Subcaves | Core integrity fell below 20% 4888 | -10/Subcaves | Build established: Mutant 5127 | -10/Subcaves | Visited Clippyterm 5254 | -10/Subcaves | A swath of the cavern ceiling suddenly collapsed 5355 | -10/Subcaves | Shifting Twisted Machinery released Sub. Machine Gun 5376 | -10/Subcaves | A swath of the cavern ceiling suddenly collapsed 6152 | -10/Subcaves | Destroyed by S-10 Pest with Light Assault Rifle Last Messages --------------- 05953_ NJ-Q0S(u) tweaks Twisted Machinery. 06021_ Dropped Battle Cannon. 06021_ Acquired Battle Cannon. 06022_ Dropped Plasma Cutter. 06024_ Acquired Battle Cannon. 06032_ 9A-7JU(u) tweaks Twisted Machinery. 06051_ 9A-7JU(u) builds Twisted Machinery. 06097_ Slammed into 9A-7JU(u). 06097_ 9A-7JU(u) knocked back. 06131_ 9A-7JU(u) cries out in pain. 06131_ 9A-7JU(u) destroyed. 06140_ VT-OLH(R): "MADSUB!" 06140_ VT-OLH(R) suffers critical hit (Destroy). 06140_ Destroyed Sub. Monowheel. 06142_ Hvy. Battle Rifle destroyed. 06143_ Y-45 Defender destroyed. 06145_ Subatomizers dissect the Lgt. Armor Plating. 06146_ Acquired Lgt. Treads. 06147_ Heat Sink fries itself beyond repair. [Achievement: Tester] Map ----- +----------------------------------------------------+ | ?????????????????????????????????????????????## | | ?????????????????????????????????????????????# """ | | ?????????????????????????????????????????????# "" | | ?????????????????????????????????????????????### | | ???????????????????????????????????????????????## | | ????????????????????????????????????????????????# | | ???????????????????????????????????????????????### | | ????????????????????????????###?????????????#### # | | ????????????????????????????#"#????????????## | | ???????????????????????????##"##???????????# | | ?????????????????????????###"" ######??????# | | ?????????????????????????#""" ###????# | | ??????????????###???????##"" #????# | | ??????????????# ##?######"" #????### | | ??????????????# "###""##"" # ##??????# | | ??????????????# """" "" #### ##????## | | ??????????????### " ###??# ##???# | | ????????????????######"" R##????#|| #??## | | ?????????????????????## ## ##???##% #### | | ??????????????????????##### ####?## ## | | ????????????????????????### #??# | | ????????????????????????# ## #?# | | ???????????????????????## ##?# ##?# ## | | ??????????????????????## #???###?# ##### # | | ??????????????????????# #???????# ##???#### | | ??????????????????????# @##???????# ###???????? | | ??????????????????????# [%#???????# ###?????????? | | ??????????????????????# *! #????# ????????????? | | ??????????????????????#=% ??# ????????????? | | ??????????????????????##= &????????????? | | ???????????????????????# ????????????? | | ???????????????????????#s ### ???????????? | | ???????????????????????s ###??# ???????????? | | ??????????????????????? #?????? ###???????????? | | ??????????????????????? ???????##?????????????? | | ??????????????????????? ??????????????????????? | | ??????????????????????# #??????????????????????? | | ??????????????????????## #??????????????????????? | | ???????????????????????? ??????????????????????? | | ???????????????????????? ??????????????????????? | | ##?????????????????????? ??????????????????????? | | #?????????????????????? ??????????????????????? | | ##???????????????????????????????????????????????? | | #???????????????????????????????????????????????? | | ##???????????????????????????????????????????????? | | #???????????????????????????????????????????????? | | ##???????????????????????????????????????????????? | | #???????????????????????????????????????????????? | | ##???????????????????????????????????????????????? | | #???????????????????????????????????????????????? | +----------------------------------------------------+ Best States ------------- Heat Dissipation 25 Energy Generation 10 Energy Capacity 250 Matter Stores 300 Matter Capacity 300 Sight Range 16 Terrain Scan Range 16 Terrain Scan Density 10 Armor Coverage 100 Resistance: TH 10 Evasion (%) 40 Targeting Accuracy 6 Recoil Reduction 2 Item Schematics ----------------- None Robot Schematics ------------------ None Fabricated ------------ Nothing Alien Tech Used ----------------- None Achievements -------------- Tester Challenges ------------ None Game ------ Seed MetaHackingProjector Manual? 0 Play Time 00:23:59 Cumulative 79.7 hours Start 2024.04.17 @ 17:49:50 End 2024.04.17 @ 18:31:11 Sessions 1 Manual Loads 0 Difficulty Rogue Special Mode None Game No. 81 Rogue 81 Adventurer 0 Explorer 0 Win Type - Total 1 Types 1/0/0/0/0/0/0/0/0 Lore% 36 Gallery% 50 Achievement% 42 Wizard Run 0 Options --------- Layout 0 ASCII 0 Keyboard 1 Movement Numpad Keybinds 0 Fullscreen 2 Font 24/Smallcaps Map View 76x50 Zoom Use 0% Tactical HUD 1 Map Filters NONE Filters NONE Steam 1 RUN: eeee85bd-527f-44ed-bd5a-6efb3b78bc93